bitfinex/quotes_BTCUSD_20250623
["timestamp","ask_amount","ask_price","bid_price","bid_amount"]
[1750710001454,1.47147245,103830.0,103820.0,0.08735448]
[1750710001667,2.88297947,103830.0,103790.0,0.00045799]
[1750710001908,0.48918514,103800.0,103790.0,0.03829292]
[1750710002106,0.51893953,103800.0,103790.0,0.19453799]
[1750710002332,0.51893953,103800.0,103790.0,0.2721288]
[1750710002333,0.512176,103800.0,103790.0,0.2721288]
[1750710002557,1.12354099,103800.0,103790.0,0.02942799]
[1750710002738,1.84507058,103800.0,103790.0,0.00045799]
[1750710002945,1.44118186,103800.0,103790.0,0.00932633]
[1750710003159,1.44118186,103800.0,103790.0,0.00045799]
[1750710003362,1.45921491,103800.0,103790.0,0.00932654]
[1750710003563,0.97002977,103800.0,103790.0,0.00932654]
[1750710004084,1.43035644,103800.0,103790.0,0.00932654]
[1750710004274,1.43035644,103800.0,103790.0,0.01232654]
[1750710004650,1.41432339,103800.0,103790.0,0.01232654]
[1750710004853,1.41432339,103800.0,103790.0,0.00932654]
[1750710005066,1.41452339,103800.0,103790.0,0.00932654]
[1750710005283,0.43615311,103800.0,103790.0,0.00932654]
[1750710005711,1.41452339,103800.0,103790.0,0.00932654]
[1750710006406,1.44470434,103800.0,103790.0,0.00932654]
[1750710006901,1.44470434,103800.0,103790.0,0.00045799]
[1750710007118,1.44470434,103800.0,103790.0,0.00931327]
[1750710007119,2.82696334,103800.0,103790.0,0.00931327]
[1750710007565,2.9366111,103800.0,103790.0,0.00045799]
[1750710008026,2.98346138,103800.0,103790.0,0.00045799]
[1750710008941,2.95328043,103800.0,103790.0,0.00045799]
[1750710009415,2.90643095,103800.0,103790.0,0.00045799]
[1750710010309,2.9064309,103800.0,103790.0,0.00045799]
[1750710010540,0.92014652,103800.0,103790.0,0.00045799]
[1750710010759,0.89558514,103800.0,103790.0,0.00045799]
[1750710010985,0.4064,103800.0,103790.0,0.00045799]
[1750710011210,0.89558514,103800.0,103790.0,0.00045799]
[1750710011451,0.99588453,103800.0,103790.0,0.00045799]
[1750710011685,0.0022,103800.0,103790.0,0.10075738]
[1750710011925,0.0022,103800.0,103790.0,0.40384498]
[1750710012155,0.0022,103800.0,103790.0,0.46584836]
[1750710013600,0.0022,103800.0,103790.0,0.65920836]
[1750710013830,0.0002,103800.0,103790.0,0.66020836]
[1750710014292,0.0002,103800.0,103790.0,0.66320836]
[1750710014526,0.0002,103800.0,103790.0,0.58861755]
[1750710014759,0.0002,103800.0,103790.0,0.58825755]
[1750710015718,0.0002,103800.0,103790.0,0.58809755]
[1750710017032,0.0002,103800.0,103790.0,0.38562356]
[1750710017255,0.0002,103800.0,103790.0,0.5975322]
[1750710017513,0.0002,103800.0,103790.0,0.5974922]
[1750710017749,0.0002,103800.0,103790.0,0.57822365]
[1750710017984,0.0002,103800.0,103790.0,0.49305417]
[1750710018206,0.0002,103800.0,103790.0,0.50268891]
[1750710018437,0.0002,103800.0,103790.0,0.50252891]
[1750710018668,0.0002,103800.0,103790.0,0.31008891]
[1750710018902,0.0002,103800.0,103790.0,0.50244891]
[1750710019159,0.0002,103800.0,103790.0,0.61208356]
[1750710019461,0.0002,103800.0,103790.0,0.62171812]
[1750710019699,0.0002,103800.0,103790.0,0.64408356]
[1750710019921,0.0002,103800.0,103790.0,0.65371793]
[1750710020146,0.0002,103800.0,103790.0,0.67286639]
[1750710020376,0.0002,103800.0,103790.0,0.65359793]
[1750710020602,0.0002,103800.0,103790.0,0.46135793]
[1750710020830,0.0002,103800.0,103790.0,0.45172356]
[1750710021053,0.0002,103800.0,103790.0,0.65347793]
[1750710021331,0.0002,103800.0,103790.0,0.66311211]
[1750710021553,0.0002,103800.0,103790.0,0.69611211]
[1750710021803,0.0002,103800.0,103790.0,0.69611221]
[1750710022257,0.48938514,103800.0,103790.0,0.43187738]
[1750710022484,0.48938514,103800.0,103790.0,0.39987738]
[1750710022712,0.48938514,103800.0,103790.0,0.62154217]
[1750710022931,0.48938514,103800.0,103790.0,0.59225417]
[1750710023144,0.48938514,103800.0,103790.0,0.10745799]
[1750710023370,0.48938514,103800.0,103790.0,0.29909799]
[1750710026006,0.0002,103800.0,103790.0,0.29909799]
[1750710026458,0.48938514,103800.0,103790.0,0.29909799]
[1750710027333,0.48938514,103800.0,103790.0,0.29849799]
[1750710027786,0.48938514,103800.0,103790.0,0.29825799]
[1750710028648,0.51948514,103800.0,103790.0,0.10745799]
[1750710028889,0.51948514,103800.0,103790.0,0.29825799]
[1750710029111,0.55068514,103800.0,103790.0,0.29801799]
[1750710029344,0.55068514,103800.0,103790.0,0.29793799]
[1750710029566,0.0303,103800.0,103790.0,0.29793799]
[1750710030004,0.51948514,103800.0,103790.0,0.29793799]
[1750710030689,0.55068514,103800.0,103790.0,0.29769799]
[1750710031826,0.89068514,103800.0,103790.0,0.29769799]
[1750710032741,0.89068514,103800.0,103790.0,0.10745799]
[1750710032960,0.89068514,103800.0,103790.0,0.29753799]
[1750710033848,0.4015,103800.0,103790.0,0.29753799]
[1750710034089,0.0002,103800.0,103790.0,0.60016891]
[1750710034312,0.0002,103800.0,103790.0,0.42823738]
[1750710034753,0.0002,103800.0,103790.0,0.630569]
[1750710034979,0.0002,103800.0,103790.0,0.66917165]
[1750710035639,0.0002,103800.0,103790.0,0.45720538]
[1750710035864,0.0002,103800.0,103790.0,0.42823738]
[1750710036775,0.48938514,103800.0,103790.0,0.29753799]
[1750710037431,0.0002,103800.0,103790.0,0.62233417]
[1750710037644,0.0002,103800.0,103790.0,0.42963738]
[1750710037861,0.0002,103800.0,103790.0,0.45963738]
[1750710038750,0.0002,103800.0,103790.0,0.42843738]
[1750710038977,0.48938514,103800.0,103790.0,0.39623738]
[1750710039222,0.53832365,103800.0,103790.0,0.10745799]
[1750710039432,0.55068514,103800.0,103790.0,0.10745799]
[1750710041678,0.57375939,103800.0,103790.0,0.10745799]
[1750710042359,0.55068514,103800.0,103790.0,0.10745799]
[1750710043050,0.57375915,103800.0,103790.0,0.10745799]
[1750710045150,0.61770726,103800.0,103790.0,0.10745799]
[1750710045381,0.08457401,103800.0,103790.0,0.10745799]
[1750710045606,0.57375915,103800.0,103790.0,0.10745799]
[1750710045844,1.01405854,103800.0,103790.0,0.10745799]
[1750710046088,1.53886127,103800.0,103790.0,0.10745799]
[1750710046319,3.07443847,103800.0,103790.0,0.10745799]
[1750710046553,3.07444193,103800.0,103790.0,0.10745799]
[1750710047014,3.07444193,103800.0,103790.0,0.10345799]
[1750710047227,2.94528407,103800.0,103790.0,0.10345799]
[1750710047728,2.94528407,103800.0,103790.0,0.10045799]
[1750710048410,2.9741401,103800.0,103790.0,0.10045799]
[1750710048866,2.694157,103800.0,103790.0,0.10045799]
[1750710049328,2.67961615,103800.0,103790.0,0.10045799]
[1750710049562,2.67941615,103800.0,103790.0,0.10045799]
[1750710049793,2.43193615,103800.0,103790.0,0.10045799]
[1750710050020,2.61865615,103800.0,103790.0,0.10045799]
[1750710050251,2.61865817,103800.0,103790.0,0.10045799]
[1750710050487,1.23639917,103800.0,103790.0,0.10045799]
[1750710050739,0.02327401,103800.0,103790.0,0.10045799]
[1750710050974,0.0002,103800.0,103790.0,0.2424488]
[1750710051188,0.0002,103800.0,103790.0,0.34274819]
[1750710052060,0.0002,103800.0,103790.0,0.554714]
[1750710052274,0.0002,103800.0,103790.0,0.56434818]
[1750710052925,0.0002,103800.0,103790.0,1.05353332]
[1750710053895,0.46200006,103860.0,103790.0,1.05353332]
[1750710053896,0.0002197,103870.0,103860.0,0.05]
[1750710054134,0.11079955,103880.0,103870.0,0.62597035]
[1750710054376,0.37484776,103890.0,103880.0,1.58977847]
[1750710054590,0.37341364,103890.0,103880.0,1.93069798]
[1750710054811,0.27581364,103890.0,103880.0,1.86447847]
[1750710055038,0.18391364,103890.0,103880.0,0.65600474]
[1750710055226,0.18391364,103890.0,103880.0,1.7050767]
[1750710055485,0.067,103900.0,103890.0,0.68592773]
[1750710055714,0.067,103900.0,103890.0,0.86087141]
[1750710055942,0.067,103900.0,103890.0,0.37168627]
[1750710056169,0.06691188,103900.0,103890.0,0.86087141]
[1750710056398,0.06691188,103900.0,103890.0,0.99875141]
[1750710056833,0.06691188,103900.0,103890.0,0.9891265]
[1750710057271,0.06691188,103900.0,103890.0,1.00875188]
[1750710057493,0.06691188,103900.0,103890.0,0.52919165]
[1750710057757,0.06691188,103900.0,103890.0,0.29817939]
[1750710057977,0.06691188,103900.0,103890.0,0.30517939]
[1750710058195,0.06691188,103900.0,103890.0,0.11729939]
[1750710058411,0.12961188,103900.0,103890.0,0.11729939]
[1750710058816,0.61879702,103900.0,103890.0,0.11729939]
[1750710059063,0.61879702,103900.0,103890.0,0.01]
[1750710059538,1.01743702,103900.0,103890.0,0.004]
[1750710059784,1.01743702,103900.0,103890.0,0.01]
[1750710060031,1.01743702,103900.0,103890.0,0.004]
[1750710060236,1.02043702,103900.0,103890.0,0.004]
[1750710060450,1.08910863,103900.0,103890.0,0.004]
[1750710060662,0.13261188,103900.0,103890.0,0.004]
[1750710061094,0.0306,103890.0,103880.0,0.00045799]
[1750710061309,0.0306,103890.0,103880.0,0.31253973]
[1750710061532,0.22203356,103910.0,103880.0,0.30291361]
[1750710061752,0.28067356,103910.0,103890.0,0.10029939]
[1750710061972,0.58955675,103900.0,103890.0,0.10029939]
[1750710062192,0.0324,103890.0,103880.0,0.00045799]
[1750710063109,0.0324,103890.0,103880.0,0.10075738]
[1750710063318,0.0324,103890.0,103880.0,0.10275738]
[1750710065440,0.0324,103890.0,103880.0,0.10475738]
[1750710065647,0.0324,103890.0,103880.0,0.29728722]
[1750710065855,0.0324,103890.0,103880.0,0.10475738]
[1750710066309,0.0324,103890.0,103880.0,0.29728722]
[1750710066649,0.0324,103890.0,103880.0,0.39728722]
[1750710067081,0.0324,103890.0,103880.0,0.39628722]
[1750710068058,0.0324,103890.0,103880.0,0.49628722]
[1750710068504,1.0324,103890.0,103880.0,0.30375738]
[1750710068701,1.0324,103890.0,103880.0,0.204]
[1750710068702,3.07467839,103890.0,103880.0,0.204]
[1750710068938,3.74737538,103890.0,103880.0,0.204]
[1750710069135,3.64707599,103890.0,103880.0,0.204]
[1750710069545,3.64707599,103890.0,103880.0,0.2]
[1750710070381,3.64707599,103890.0,103880.0,0.201]
[1750710070586,2.92843348,103890.0,103880.0,0.201]
[1750710070835,3.48629023,103890.0,103880.0,0.201]
[1750710071458,3.48379023,103890.0,103880.0,0.201]
[1750710071661,3.48479023,103890.0,103880.0,0.201]
[1750710072075,3.54343023,103890.0,103880.0,0.201]
[1750710072285,3.29647023,103890.0,103880.0,0.2]
[1750710072484,3.54343023,103890.0,103880.0,0.2]
[1750710072612,3.54443023,103890.0,103880.0,0.2]
[1750710073689,3.57693023,103890.0,103880.0,0.2]
[1750710075343,2.31727324,103890.0,103880.0,0.2]
[1750710075557,0.93501424,103890.0,103880.0,0.27700082]
[1750710075927,1.49287099,103890.0,103880.0,0.27700082]
[1750710076130,0.93501424,103890.0,103880.0,0.27700082]
[1750710076343,0.93401424,103890.0,103880.0,0.27700082]
[1750710076515,0.93501424,103890.0,103880.0,0.27700082]
[1750710076722,0.93401424,103890.0,103880.0,0.27700082]
[1750710076957,1.49087099,103890.0,103880.0,0.2]
[1750710077153,1.49087099,103890.0,103880.0,0.201]
[1750710077517,0.93401424,103890.0,103880.0,0.201]
[1750710077967,0.86911424,103890.0,103880.0,0.27800082]
[1750710078264,1.49097099,103890.0,103880.0,0.201]
[1750710079431,0.93311424,103890.0,103880.0,0.201]
[1750710079648,1.49097099,103890.0,103880.0,0.201]
[1750710080102,1.93127038,103890.0,103880.0,0.201]
[1750710080349,1.86076829,103890.0,103880.0,0.201]
[1750710080579,3.25756814,103890.0,103880.0,0.201]
[1750710080818,3.26428937,103890.0,103880.0,0.201]
[1750710082416,3.24974852,103890.0,103880.0,0.201]
[1750710082666,0.86911424,103890.0,103880.0,0.39352984]
[1750710082896,0.86911424,103890.0,103880.0,0.41278235]
[1750710083125,0.86911424,103890.0,103880.0,0.63734087]
[1750710083641,0.86911424,103890.0,103880.0,0.63634096]
[1750710083889,0.86911424,103890.0,103880.0,0.63834105]
[1750710084096,0.86911424,103890.0,103880.0,0.65096652]
[1750710084304,0.86911424,103890.0,103880.0,0.62208873]
[1750710084515,0.86911424,103890.0,103880.0,0.63171475]
[1750710084693,0.86911424,103890.0,103880.0,0.86548239]
[1750710085151,0.86911424,103890.0,103880.0,0.83747604]
[1750710085401,0.86911424,103890.0,103880.0,0.86582162]
[1750710085607,0.86911424,103890.0,103880.0,0.83747604]
[1750710086030,0.86911424,103890.0,103880.0,0.86582176]
[1750710086234,0.86911424,103890.0,103880.0,0.86282176]
[1750710086461,0.86911424,103890.0,103880.0,0.82631757]
[1750710086681,0.86911424,103890.0,103880.0,0.44698773]
[1750710086891,1.4179689,103890.0,103880.0,0.207]
[1750710087098,1.42471636,103890.0,103880.0,0.207]
[1750710087827,1.43371302,103890.0,103880.0,0.207]
[1750710088029,0.94635836,103890.0,103880.0,0.207]
[1750710088474,1.43371302,103890.0,103880.0,0.207]
[1750710089440,1.77371302,103890.0,103880.0,0.207]
[1750710089757,1.9743118,103890.0,103880.0,0.207]
[1750710089960,3.3565708,103890.0,103880.0,0.207]
[1750710090393,3.25627299,103890.0,103880.0,0.204]
[1750710090830,3.27081384,103890.0,103880.0,0.204]
[1750710091256,3.27081384,103890.0,103880.0,0.2]
[1750710091892,2.76891833,103890.0,103880.0,0.2]
[1750710092105,1.93309399,103890.0,103880.0,0.2]
[1750710092530,1.44573933,103890.0,103880.0,0.2]
[1750710092743,1.93309399,103890.0,103880.0,0.2]
[1750710093608,3.25627299,103890.0,103880.0,0.2]
[1750710093815,3.50143299,103890.0,103880.0,0.2]
[1750710094469,3.49468395,103890.0,103880.0,0.2]
[1750710094870,3.50143345,103890.0,103880.0,0.2]
[1750710095523,4.00332896,103890.0,103880.0,0.2]
[1750710095937,3.9875828,103890.0,103880.0,0.2]
[1750710096175,4.00333431,103890.0,103880.0,0.2]
[1750710096388,4.09823945,103890.0,103880.0,0.2]
[1750710096596,4.00333431,103890.0,103880.0,0.2]
[1750710097472,3.51598046,103890.0,103880.0,0.2]
[1750710097668,3.27082046,103890.0,103880.0,0.2]
[1750710097894,3.51602103,103890.0,103880.0,0.2]
[1750710098292,3.51602083,103890.0,103880.0,0.2]
[1750710098589,3.02866617,103890.0,103880.0,0.2]
[1750710098846,3.50147998,103890.0,103880.0,0.2]
[1750710099258,3.01412532,103890.0,103880.0,0.2]
[1750710099477,3.51602083,103890.0,103880.0,0.2]
[1750710100146,3.01602083,103890.0,103880.0,0.2]
[1750710101247,3.01602157,103890.0,103880.0,0.2]
[1750710102211,3.00148072,103890.0,103880.0,0.2]
[1750710102419,3.00148073,103890.0,103880.0,0.2]
[1750710103494,3.02453318,103890.0,103880.0,0.2]
[1750710103917,3.03232256,103890.0,103880.0,0.2]
[1750710104126,3.03907399,103890.0,103880.0,0.2]
[1750710104563,3.54600931,103890.0,103880.0,0.2]
[1750710104777,3.59600924,103890.0,103880.0,0.2]
[1750710105025,0.35454085,103880.0,103840.0,0.08100082]
[1750710105246,0.55065466,103850.0,103840.0,0.08145907]
[1750710105461,1.93291366,103850.0,103840.0,0.03974442]
[1750710105882,2.37321305,103850.0,103840.0,0.03974442]
[1750710106093,2.39626184,103850.0,103840.0,0.03974442]
[1750710106309,2.58229081,103850.0,103840.0,0.03974442]
[1750710106525,2.58903991,103850.0,103840.0,0.03974442]
[1750710106732,2.5890401,103850.0,103840.0,0.03974442]
[1750710106949,2.60435274,103850.0,103840.0,0.03974442]
[1750710107179,2.70465213,103850.0,103840.0,0.03974442]
[1750710107425,2.66347274,103850.0,103840.0,0.03974442]
[1750710108109,2.66347274,103850.0,103840.0,0.00045825]
[1750710109124,2.66347274,103850.0,103830.0,0.0002]
[1750710109125,2.27161366,103840.0,103830.0,0.0002]
[1750710109396,3.05205684,103840.0,103830.0,0.0006587]
[1750710109617,3.05205237,103840.0,103830.0,0.0006587]
[1750710109855,3.05204717,103840.0,103830.0,0.0006587]
[1750710110066,3.0750511,103840.0,103830.0,0.0006587]
[1750710110309,3.16192443,103840.0,103830.0,0.0006587]
[1750710110534,3.17646528,103840.0,103830.0,0.0036587]
[1750710110768,3.17646528,103840.0,103830.0,0.0076587]
[1750710110981,3.15756059,103840.0,103830.0,0.004]
[1750710111623,1.754859,103820.0,103810.0,0.07700082]
[1750710111843,0.34,103820.0,103810.0,0.07745997]
[1750710112052,1.722259,103830.0,103810.0,0.07745997]
[1750710112260,0.34,103830.0,103810.0,0.17775936]
[1750710112491,0.34,103830.0,103810.0,0.37041787]
[1750710112716,0.50266722,103850.0,103820.0,0.29294044]
[1750710112928,0.26036,103860.0,103830.0,0.07700082]
[1750710112929,0.74771466,103860.0,103830.0,0.07700082]
[1750710113140,1.382259,103850.0,103830.0,0.17730021]
[1750710113576,0.34,103850.0,103830.0,0.36992217]
[1750710113804,0.51631466,103860.0,103830.0,0.37855311]
[1750710114015,0.67335466,103860.0,103830.0,0.37855311]
[1750710114224,0.34,103850.0,103830.0,0.37855311]
[1750710114437,0.67335466,103860.0,103830.0,0.37855311]
[1750710114647,0.67335466,103860.0,103830.0,0.17630021]
[1750710114862,2.36961366,103860.0,103830.0,0.37855369]
[1750710115114,0.002,103850.0,103830.0,0.37855369]
[1750710115325,0.002,103850.0,103830.0,0.36892257]
[1750710115528,0.002,103860.0,103830.0,0.3735536]
[1750710115529,0.342,103860.0,103830.0,0.3735536]
[1750710115749,0.002,103860.0,103840.0,0.31216328]
[1750710115958,0.006,103860.0,103840.0,0.31216346]
[1750710116165,0.006,103860.0,103840.0,0.29290316]
[1750710116426,0.004,103860.0,103850.0,0.19258545]
[1750710116642,1.382259,103870.0,103850.0,0.31214329]
[1750710116848,1.382259,103870.0,103860.0,0.32175021]
[1750710117085,1.382259,103870.0,103860.0,0.87190487]
[1750710117299,0.36911424,103890.0,103870.0,0.20217569]
[1750710117509,0.36911424,103890.0,103870.0,0.10029939]
[1750710117717,0.36911424,103890.0,103870.0,0.29330649]
[1750710117931,0.36911424,103890.0,103870.0,0.39918862]
[1750710118146,0.36911424,103890.0,103880.0,0.30245553]
[1750710118368,0.36911424,103890.0,103880.0,0.09929939]
[1750710118809,0.8564689,103890.0,103870.0,0.00045915]
[1750710119021,0.8564689,103890.0,103870.0,0.10075854]
[1750710119225,0.8564689,103890.0,103870.0,0.00045915]
[1750710119441,0.48735466,103880.0,103870.0,0.00245915]
[1750710119646,0.9202689,103890.0,103870.0,0.00245915]
[1750710119858,1.382259,103880.0,103870.0,0.00045915]
[1750710120070,1.382259,103880.0,103870.0,0.00445915]
[1750710120314,1.382259,103880.0,103870.0,0.00045915]
[1750710120735,1.382259,103880.0,103870.0,0.00245915]
[1750710120978,0.9202689,103890.0,103870.0,0.00245915]
[1750710121428,0.9202689,103890.0,103870.0,0.00345915]
[1750710121834,0.9202689,103890.0,103870.0,0.00245915]
[1750710122048,0.43291424,103890.0,103870.0,0.00245915]
[1750710122262,1.382259,103880.0,103870.0,0.00245915]
[1750710122491,1.382259,103880.0,103870.0,0.00045915]
[1750710122729,0.9212689,103890.0,103870.0,0.00045915]
[1750710123151,0.9202689,103890.0,103870.0,0.00045915]
[1750710123809,0.36911424,103890.0,103870.0,0.10275854]
[1750710124084,0.36911424,103890.0,103870.0,0.39918713]
[1750710124297,0.36911424,103890.0,103880.0,0.10029939]
[1750710125375,0.8564689,103890.0,103870.0,0.00045915]
[1750710125590,0.43021424,103890.0,103870.0,0.00045915]
[1750710125803,0.9175689,103890.0,103870.0,0.00045915]
[1750710126027,0.36911424,103890.0,103880.0,0.002]
[1750710126242,0.36911424,103890.0,103880.0,0.003]
[1750710126453,0.36911424,103890.0,103880.0,0.30545553]
[1750710126660,0.36911424,103890.0,103880.0,0.8615364]
[1750710126874,0.36911424,103890.0,103880.0,0.36455562]
[1750710127145,0.36911424,103890.0,103880.0,0.56968758]
[1750710127623,0.36911424,103890.0,103880.0,1.07358309]
[1750710127913,0.36911424,103890.0,103880.0,1.13198309]
[1750710128143,0.36911424,103890.0,103880.0,0.67356343]
[1750710128364,0.36911424,103890.0,103880.0,0.37341674]
[1750710128594,0.36911424,103890.0,103880.0,0.49992174]
[1750710128841,0.36911424,103890.0,103880.0,0.51254758]
[1750710129074,0.36911424,103890.0,103880.0,0.29413939]
[1750710129304,0.36911424,103890.0,103880.0,0.29113939]
[1750710129532,0.36911424,103890.0,103880.0,0.51254758]
[1750710129752,0.36911424,103890.0,103880.0,0.51954758]
[1750710130219,0.36911424,103890.0,103880.0,0.50029562]
[1750710130466,0.36911424,103890.0,103880.0,0.52917379]
[1750710130684,0.36911424,103890.0,103880.0,0.50992183]
[1750710130926,0.8564689,103890.0,103880.0,0.29813939]
[1750710131390,0.8564689,103890.0,103880.0,0.11222591]
[1750710131688,0.9225689,103890.0,103880.0,0.012]
[1750710131923,0.36911424,103890.0,103880.0,0.012]
[1750710132139,0.8564689,103890.0,103880.0,0.012]
[1750710132378,0.8564689,103890.0,103870.0,0.21226078]
[1750710132600,0.8564689,103890.0,103870.0,0.31256027]
[1750710132849,0.8564689,103890.0,103880.0,0.005]
[1750710133556,0.8564689,103890.0,103880.0,0.002]
[1750710134526,0.8564689,103890.0,103880.0,0.005]
[1750710134756,0.8564689,103890.0,103880.0,0.003]
[1750710135226,0.8586489,103890.0,103880.0,0.003]
[1750710135687,0.8586489,103890.0,103880.0,0.40149939]
[1750710135907,0.37129424,103890.0,103880.0,0.40149939]
[1750710136126,0.37129424,103890.0,103880.0,0.62290758]
[1750710136392,0.8586489,103890.0,103880.0,0.29105939]
[1750710136840,0.37129424,103890.0,103880.0,0.29105939]
[1750710137061,0.8586489,103890.0,103880.0,0.29105939]
[1750710137513,0.37129424,103890.0,103880.0,0.50284211]
[1750710137739,0.37129424,103890.0,103880.0,0.51246841]
[1750710137958,0.37129424,103890.0,103880.0,0.52209453]
[1750710138171,0.37129424,103890.0,103880.0,0.53171981]
[1750710139060,0.37129424,103890.0,103880.0,0.52209397]
[1750710139466,0.37129424,103890.0,103880.0,0.53171981]
[1750710140188,0.37129424,103890.0,103880.0,0.59451981]
[1750710140943,0.37129424,103890.0,103880.0,0.56211981]
[1750710143159,0.37129424,103890.0,103880.0,0.51246813]
[1750710143388,0.37129424,103890.0,103880.0,0.53172009]
[1750710143619,0.37129424,103890.0,103880.0,0.53164009]
[1750710143849,0.37348424,103890.0,103880.0,0.53164009]
[1750710144803,0.37368424,103890.0,103880.0,0.53164009]
[1750710145277,0.37368424,103890.0,103880.0,0.34596009]
[1750710145485,0.37368424,103890.0,103880.0,0.53160009]
[1750710145934,0.37368424,103890.0,103880.0,1.0949956]
[1750710146152,0.37368424,103890.0,103880.0,0.60764094]
[1750710146401,0.37368424,103890.0,103880.0,0.29782923]
[1750710146642,0.37368424,103890.0,103880.0,0.29093939]
[1750710146875,0.37368424,103890.0,103880.0,0.28893939]
[1750710147208,0.37368424,103890.0,103870.0,0.00045915]
[1750710147209,1.2010389,103890.0,103870.0,0.00045915]
[1750710147306,1.2010389,103890.0,103880.0,0.003]
[1750710147531,0.71368424,103890.0,103880.0,0.01]
[1750710147804,0.71368424,103890.0,103880.0,0.20729939]
[1750710147999,0.71368424,103890.0,103880.0,0.39789939]
[1750710148222,0.71368424,103890.0,103880.0,0.21229939]
[1750710148458,0.71368424,103890.0,103880.0,0.39789939]
[1750710148692,1.2330389,103890.0,103880.0,0.39789939]
[1750710148915,1.2637389,103890.0,103880.0,0.2976]
[1750710149146,1.2637389,103890.0,103880.0,0.2906]
[1750710149363,1.2637389,103890.0,103880.0,0.2856]
[1750710149575,1.2637389,103890.0,103880.0,0.2866]
[1750710149797,0.77638424,103890.0,103880.0,0.2866]
[1750710150237,0.77638424,103890.0,103880.0,0.57942923]
[1750710151183,0.77638424,103890.0,103880.0,0.03208434]
[1750710151184,1.2637389,103890.0,103880.0,0.03208434]
[1750710151399,1.30481532,103890.0,103880.0,0.03208434]
[1750710151656,0.81746066,103890.0,103880.0,0.03208434]
[1750710151882,1.28175642,103890.0,103880.0,0.03208434]
[1750710152314,1.2637389,103890.0,103880.0,0.03208434]
[1750710152536,1.28175613,103890.0,103880.0,0.03208434]
[1750710152768,0.7994488,103890.0,103880.0,0.03208434]
[1750710152989,0.77638424,103890.0,103880.0,0.03208434]
[1750710153214,0.77638424,103890.0,103880.0,0.13238373]
[1750710153655,1.2637389,103890.0,103880.0,0.13238373]
[1750710154306,1.2637389,103890.0,103880.0,0.03208434]
[1750710155477,0.77638424,103890.0,103880.0,0.03208434]
[1750710155696,1.2659389,103890.0,103880.0,0.03208434]
[1750710156131,0.77858424,103890.0,103880.0,0.03208434]
[1750710156361,1.2659389,103890.0,103880.0,0.03208434]
[1750710158353,1.2659389,103890.0,103880.0,0.13238373]
[1750710158823,1.2659389,103890.0,103880.0,0.03208434]
[1750710163393,1.29121915,103890.0,103880.0,0.03208434]
[1750710163843,2.70052039,103890.0,103880.0,0.00705934]
[1750710164062,2.70728123,103890.0,103880.0,0.00705934]
[1750710164708,0.88965466,103880.0,103870.0,0.00045915]
[1750710166006,0.88965466,103880.0,103870.0,0.00745915]
[1750710166277,1.37700932,103880.0,103870.0,0.00745915]
[1750710166925,1.40007585,103880.0,103870.0,0.00745915]
[1750710168073,1.37700932,103880.0,103870.0,0.00745915]
[1750710168284,0.88965466,103880.0,103870.0,0.00745915]
[1750710168765,0.88965466,103880.0,103870.0,0.18475936]
[1750710168766,0.82735466,103880.0,103870.0,0.18475936]
[1750710168981,0.8981489,103890.0,103870.0,0.37970668]
[1750710169209,0.37809424,103890.0,103880.0,0.30245553]
[1750710169445,0.37809424,103890.0,103880.0,0.31208174]
[1750710169678,0.37809424,103890.0,103880.0,0.35190758]
[1750710170446,0.37809424,103890.0,103880.0,0.39684843]
[1750710170915,0.37809424,103890.0,103880.0,0.39884843]
[1750710171602,0.37809424,103890.0,103880.0,0.38430758]
[1750710172048,0.37809424,103890.0,103880.0,0.38730758]
[1750710172274,0.37809424,103890.0,103880.0,0.63850758]
[1750710172735,0.2101651,103890.0,103880.0,0.68850758]
[1750710173403,0.2101651,103890.0,103880.0,0.73850758]
[1750710174588,0.2101651,103890.0,103880.0,1.22586224]
[1750710175012,0.2123851,103890.0,103880.0,1.22586224]
[1750710175244,0.21231179,103890.0,103880.0,1.22586224]
[1750710175913,0.21231179,103890.0,103880.0,0.73850758]
[1750710176600,0.21231179,103890.0,103880.0,0.73838758]
[1750710177063,0.21231179,103890.0,103880.0,0.68838758]
[1750710177284,0.21231179,103890.0,103880.0,0.68834758]
[1750710178183,0.21231179,103890.0,103880.0,0.73834758]
[1750710178887,0.21231179,103890.0,103880.0,0.68834758]
[1750710179145,0.21231179,103890.0,103880.0,0.73834758]
[1750710180059,0.69966645,103890.0,103880.0,0.49090923]
[1750710180303,1.58932111,103890.0,103880.0,0.29837939]
[1750710180773,0.21231179,103890.0,103870.0,0.00045915]
[1750710181004,0.21231179,103890.0,103870.0,0.10075854]
[1750710181263,0.48735466,103880.0,103870.0,0.19300714]
[1750710181490,0.48735466,103880.0,103870.0,0.32218766]
[1750710181745,0.69966645,103890.0,103880.0,0.20415633]
[1750710181978,0.69966645,103890.0,103880.0,0.32370823]
[1750710182219,0.21231179,103890.0,103880.0,0.32370823]
[1750710182434,0.69966645,103890.0,103880.0,0.10229939]
[1750710182665,0.21454179,103890.0,103880.0,0.28733939]
[1750710182921,0.70389645,103890.0,103880.0,0.10229939]
[1750710183157,0.70189645,103890.0,103880.0,0.48949572]
[1750710183393,0.70189645,103890.0,103880.0,0.52806193]
[1750710183636,0.70189645,103890.0,103880.0,0.49712202]
[1750710183637,0.21454179,103890.0,103880.0,0.49712202]
[1750710183880,0.70189645,103890.0,103880.0,0.526]
[1750710184118,0.21454179,103890.0,103880.0,0.40416]
[1750710184394,0.21454179,103890.0,103880.0,0.72408082]
[1750710184627,0.21454179,103890.0,103880.0,0.77408082]
[1750710184864,0.70289645,103890.0,103880.0,0.69708]
[1750710185351,0.21454179,103890.0,103880.0,0.69708]
[1750710185679,0.21454179,103890.0,103880.0,0.70008]
[1750710185880,0.70189645,103890.0,103880.0,0.52956]
[1750710186384,0.70189645,103890.0,103880.0,0.48142923]
[1750710186603,0.70189645,103890.0,103880.0,0.29501939]
[1750710186825,0.73339645,103890.0,103880.0,0.29501939]
[1750710187045,0.76449645,103890.0,103880.0,0.48754923]
[1750710187271,0.76449645,103890.0,103880.0,0.29501939]
[1750710187486,0.76449645,103890.0,103880.0,0.48754923]
[1750710187949,0.73299645,103890.0,103880.0,0.30182923]
[1750710188175,0.73299645,103890.0,103880.0,0.48750923]
[1750710188387,0.73299645,103890.0,103880.0,0.29497939]
[1750710188817,0.76389645,103890.0,103880.0,0.29497939]
[1750710189279,0.76389645,103890.0,103880.0,0.10929939]
[1750710189522,0.76613645,103890.0,103880.0,0.29477939]
[1750710189972,0.34,103880.0,103870.0,0.00045915]
[1750710190190,0.34,103880.0,103870.0,0.10075854]
[1750710190191,1.37800932,103880.0,103870.0,0.10075854]
[1750710191110,0.4033,103880.0,103870.0,0.10075854]